bitfinex-derivatives/quotes_SOLF0:USTF0_20250613
["timestamp","ask_amount","ask_price","bid_price","bid_amount"]
[1749777030290,19.04469762,143.55,143.54,6.586e-05]
[1749777030487,6.9606,143.55,143.54,6.586e-05]
[1749777030791,6.9601,143.56,143.54,6.586e-05]
[1749777030993,0.04593518,143.58,143.54,6.586e-05]
[1749777031395,0.04593518,143.58,143.54,2.50006586]
[1749777031592,212.84593518,143.58,143.54,2.50006586]
[1749777032003,6.9606,143.55,143.54,2.50006586]
[1749777032189,12.08409762,143.57,143.54,2.50006586]
[1749777032396,212.84593518,143.58,143.54,2.50006586]
[1749777032694,12.08409762,143.57,143.54,2.50006586]
[1749777033093,212.84593518,143.58,143.54,2.50006586]
[1749777033094,224.9300328,143.58,143.54,2.50006586]
[1749777033291,212.84593518,143.58,143.54,2.50006586]
[1749777033489,0.04593518,143.58,143.54,2.50006586]
[1749777036195,12.1300328,143.58,143.54,2.50006586]
[1749777036400,87.56,143.64,143.54,14.58416348]
[1749777036601,12.08409762,143.61,143.54,2.50006586]
[1749777036802,12.08409762,143.57,143.54,2.50006586]
[1749777036999,12.08409762,143.7,143.54,2.50006586]
[1749777037000,12.08409762,143.55,143.54,2.50006586]
[1749777037201,217.02,143.56,143.54,2.50006586]
[1749777037500,0.05268637,143.56,143.54,2.55146812]
[1749777038101,6.9606,143.55,143.54,2.55146812]
[1749777038301,0.05268637,143.56,143.54,2.55146812]
[1749777038501,12.13678399,143.56,143.54,2.55146812]
[1749777038699,7.01318637,143.56,143.54,2.55146812]
[1749777038902,12.08409762,143.55,143.54,2.55146812]
[1749777039111,12.08409762,143.55,143.48,10.49]
[1749777039311,12.08409762,143.51,143.48,10.49]
[1749777039502,216.94,143.59,143.48,10.49]
[1749777039701,12.08409762,143.52,143.39,12.08409762]
[1749777039908,12.08409762,143.52,143.45,6.9654]
[1749777040108,0.05293909,143.5,143.47,0.0499148]
[1749777040309,7.01593909,143.5,143.47,0.0499148]
[1749777040908,12.08409762,143.49,143.47,2.5499148]
[1749777041118,0.05293909,143.5,143.47,2.5499148]
[1749777042006,400.88,143.62,143.47,2.5499148]
[1749777042007,6.9611,143.54,143.48,6.9636]
[1749777042212,12.08409762,143.56,143.48,4.5265]
[1749777042715,222.66,143.58,143.48,7.3465]
[1749777042903,6.9615,143.53,143.52,0.04972283]
[1749777043413,6.9635,143.49,143.48,2.82]
[1749777043612,19.04759762,143.49,143.48,2.82]
[1749777043814,6.17463879,143.77,143.48,2.82]
[1749777044112,12.08409762,143.58,143.48,2.82]
[1749777044416,0.04910724,143.54,143.52,0.05032658]
[1749777044616,0.04881163,143.54,143.52,0.0495579]
[1749777045513,7.00991163,143.54,143.52,0.0495579]
[1749777045714,0.04881163,143.54,143.52,0.0495579]
[1749777046217,6.9635,143.49,143.48,2.82]
[1749777046417,13.9158,143.61,143.47,2.5]
[1749777046418,239.60409762,143.5,143.47,2.5]
[1749777046612,12.08409762,143.48,143.47,2.5]
[1749777046806,19.04799762,143.48,143.47,2.5]
[1749777047009,19.04799762,143.48,143.37,6.6949]
[1749777047010,12.08409762,143.48,143.46,0.04554603]
[1749777047207,229.62,143.5,143.22,6.42730454]
[1749777047508,0.04628881,143.4,143.38,0.0460931]
[1749777047703,0.04537278,143.4,143.38,0.05231932]
[1749777047906,12.1294704,143.4,143.38,0.05231932]
[1749777048110,0.04537278,143.4,143.29,6.8909]
[1749777048319,12.08409762,143.3,143.19,12.08409762]
[1749777048513,12.08409762,143.3,143.22,2.338]
[1749777048714,12.08409762,143.3,143.23,2.3605]
[1749777048918,229.82,143.34,143.23,2.3605]
[1749777048919,19.05669762,143.31,143.25,6.975]
[1749777049213,0.04853439,143.29,143.27,0.05096329]
[1749777049513,12.08409762,143.28,143.27,0.05096329]
[1749777049712,0.04853439,143.29,143.27,0.05096329]
[1749777049910,12.13263201,143.29,143.27,0.05096329]
[1749777050105,6.9737,143.28,143.27,0.05096329]
[1749777050910,12.13263201,143.29,143.27,0.05096329]
[1749777051120,0.04853439,143.29,143.27,0.05096329]
[1749777051313,12.08409762,143.28,143.27,0.05096329]
[1749777051519,19.05779762,143.28,143.27,0.05096329]
[1749777051717,12.08409762,143.28,143.27,0.05096329]
[1749777052012,0.04853439,143.29,143.27,0.05096329]
[1749777052218,12.08409762,143.33,143.28,6.9737]
[1749777052613,230.26,143.38,143.27,0.05096329]
[1749777052915,20.78,143.29,143.19,2.5]
[1749777053115,12.08409762,143.2,143.06,6.7186]
[1749777053316,0.05035318,143.14,143.12,0.04865642]
[1749777053518,0.05035318,143.14,143.12,0.05354446]
[1749777053519,0.05139646,143.14,143.12,0.05354446]
[1749777053820,6.981,143.13,143.12,0.05354446]
[1749777054019,19.06509762,143.13,143.12,0.05354446]
[1749777054512,6.981,143.13,143.12,0.03344446]
[1749777054913,6.981,143.13,143.12,4.446e-05]
[1749777055114,6.981,143.13,142.95,1.21648548]
[1749777055115,6.98,143.13,142.94,6.7066]
[1749777055419,20.15320469,143.07,142.94,6.7066]
[1749777055716,637.22,143.1,142.94,9.2066]
[1749777055917,401.48,143.09,142.95,17.48]
[1749777056126,20.15320469,143.01,142.95,17.48]
[1749777056421,401.48,143.09,142.95,17.48]
[1749777056422,0.04841645,142.99,142.97,0.05092541]
[1749777056622,0.04524584,142.99,142.97,0.04472448]
[1749777056814,20.15320469,143.05,142.97,0.04472448]
[1749777057015,401.8,143.13,142.96,6.6438]
[1749777057724,13.948,143.28,143.03,0.0523907]
[1749777057725,640.7,143.19,143.03,0.0523907]
[1749777057911,640.7,143.19,143.01,20.15320469]
[1749777057912,20.15320469,143.16,143.01,20.15320469]
[1749777058113,20.15320469,143.17,143.04,20.15320469]
[1749777058419,401.8,143.19,143.01,6.9867]
[1749777058420,20.15320469,143.14,143.01,6.9867]
[1749777058609,20.15320469,143.14,142.96,6.6438]
[1749777058610,20.15320469,143.1,142.96,6.6438]
[1749777058811,0.04923957,143.04,143.02,0.0526045]
[1749777059118,0.04831614,143.04,143.02,0.04432285]
[1749777060325,0.04831614,143.04,142.96,6.6438]
[1749777060621,20.15320469,143.05,142.96,6.6438]
[1749777060813,422.09320469,143.1,142.96,6.6438]
[1749777061013,401.94,143.1,142.98,20.15320469]
[1749777061218,422.09320469,143.17,142.96,6.6438]
[1749777061517,0.04408889,143.08,143.05,0.04909601]
[1749777061717,401.94,143.17,143.05,20.19884103]
[1749777061923,1.21650674,143.18,142.95,419.42]
[1749777061924,401.94,143.24,143.06,4.6793]
[1749777062115,20.15320469,143.27,143.11,20.15320469]
[1749777062418,20.15320469,143.29,143.07,401.94]
[1749777062620,401.94,143.31,143.14,20.15320469]
[1749777062621,20.15320469,143.28,143.14,20.15320469]
[1749777062826,20.15320469,143.28,143.07,401.94]
[1749777062827,0.04527403,143.22,143.2,0.05343267]
[1749777063025,0.04421038,143.22,143.2,0.04402578]
[1749777063227,401.94,143.31,143.2,0.04402578]
[1749777063424,401.94,143.31,143.19,22.45620469]
[1749777063822,6.9723,143.31,143.25,6.9749]
[1749777064021,402.06,143.38,143.19,2.303]
[1749777064221,402.06,143.38,143.25,20.15320469]
[1749777064531,0.04776528,143.33,143.3,0.04579611]
[1749777066623,20.15320469,143.41,143.3,20.1990008]
[1749777066827,422.09320469,143.45,143.31,2.1563]
[1749777067027,422.09320469,143.45,143.35,6.9702]
[1749777067028,6.9669,143.42,143.35,6.9702]
[1749777067327,20.15320469,143.42,143.31,2.1563]
[1749777067731,401.94,143.45,143.35,0.05240386]
[1749777067732,0.04914155,143.38,143.35,0.05240386]
[1749777067926,0.04476567,143.38,143.35,0.0464457]
[1749777069028,401.94,143.45,143.35,0.0464457]
[1749777069221,401.94,143.45,143.33,2.1802]
[1749777069423,20.15320469,143.5,143.36,20.15320469]
[1749777069625,401.82,143.53,143.33,2.1802]
[1749777069626,401.82,143.53,143.39,20.15320469]
[1749777069925,0.04410529,143.47,143.45,0.04858649]
[1749777070326,6.9649,143.46,143.45,0.04858649]
[1749777070530,0.04410529,143.47,143.45,0.04858649]
[1749777072028,20.19730998,143.47,143.33,2.1802]
[1749777072232,20.15320469,143.43,143.33,2.1802]
[1749777072435,20.15320469,143.45,143.33,2.1802]
[1749777072636,0.1364,143.52,143.38,20.15320469]
[1749777072931,20.15320469,143.52,143.39,20.15320469]
[1749777073128,20.15320469,143.52,143.44,0.04727868]
[1749777073129,0.05283048,143.47,143.44,0.04727868]
[1749777074233,20.15320469,143.45,143.44,0.04727868]
[1749777074537,0.05283048,143.47,143.44,0.04727868]
[1749777075132,0.05283048,143.47,143.28,6.9736]
[1749777075133,6.9703,143.35,143.28,6.9736]
[1749777075333,20.15320469,143.32,143.23,2.2172]
[1749777075531,401.56,143.36,143.23,2.2172]
[1749777075727,6.9709,143.34,143.26,14.6545]
[1749777075929,20.15320469,143.4,143.27,20.15320469]
[1749777076129,0.05043339,143.35,143.32,0.05124947]
[1749777076424,20.15320469,143.34,143.32,0.05124947]
[1749777076625,20.15320469,143.34,143.26,7.68]
[1749777076832,10.18,143.36,143.26,7.68]
[1749777077025,10.18,143.36,143.32,2.5]
[1749777077432,20.15320469,143.36,143.32,2.5]
[1749777077631,0.04401772,143.35,143.33,0.04471005]
[1749777078038,6.9707,143.34,143.33,0.04471005]
[1749777078330,7.02401772,143.35,143.26,7.68]
[1749777078541,6.9734,143.29,143.26,7.68]
[1749777078727,20.15320469,143.32,143.26,7.68]
[1749777079332,9.68,143.42,143.28,0.05333717]
[1749777079333,20.15320469,143.29,143.28,0.05333717]
[1749777079539,20.20085562,143.3,143.27,0.04493169]
[1749777079840,27.18085562,143.3,143.02,6.30980627]
[1749777080035,401.62,143.31,143.07,2.1596]
[1749777080232,20.15320469,143.19,143.07,2.1596]
[1749777080427,401.62,143.31,143.07,2.1596]
[1749777080631,6.979,143.18,143.11,6.9816]
[1749777080826,401.62,143.31,143.08,20.15320469]
[1749777080827,20.15320469,143.22,143.08,20.15320469]
[1749777081031,20.15320469,143.26,143.14,0.05220354]
[1749777081231,20.15320469,143.26,143.12,2.2096]
[1749777081428,20.15320469,143.23,143.12,2.2096]
[1749777081637,20.15320469,143.17,143.07,4.6596]
[1749777081827,20.15320469,143.14,143.07,4.6596]
[1749777082033,0.04492835,143.12,143.09,0.04848881]
[1749777082340,20.15320469,143.11,143.09,0.04848881]
[1749777082731,6.9824,143.1,143.09,0.04848881]
[1749777082933,401.72,143.1,142.98,2.1596]
[1749777083137,20.15320469,143.05,142.98,2.1596]
[1749777083338,20.15320469,142.99,142.84,7.52707895]
[1749777083534,20.15320469,142.99,142.85,6.9353]
[1749777083930,411.02,143.01,142.85,6.9353]
[1749777083931,0.05252329,142.93,142.91,0.04514285]
[1749777084243,0.05252329,142.93,142.91,0.04906679]
[1749777084244,20.19875854,142.93,142.91,0.04906679]
[1749777084541,0.04555385,142.93,142.91,0.04906679]
[1749777084838,20.15320469,142.92,142.91,0.04906679]
[1749777085145,422.11320469,142.92,142.87,17.49]
[1749777085350,9.06,142.91,142.87,6.142]
[1749777085642,29.21320469,142.91,142.87,8.642]
[1749777085843,20.15320469,142.88,142.87,8.642]
[1749777086447,20.15320469,142.88,142.86,0.04816893]
[1749777086641,20.15320469,142.88,142.72,2.3637]
[1749777086945,9.06,142.91,142.72,2.3637]
[1749777087435,20.15320469,142.85,142.72,2.3637]
[1749777087741,6.395e-05,142.8,142.77,0.04719937]
[1749777087945,401.96,142.92,142.72,2.3637]
[1749777088248,20.15320469,142.84,142.77,2.5]
[1749777088548,411.32,142.83,142.77,2.5]
[1749777088842,20.15320469,143.04,142.79,0.05144291]
[1749777088843,20.15320469,142.8,142.79,0.05144291]
[1749777089044,402.32457044,142.81,142.78,0.00822131]
[1749777089341,20.15320469,142.79,142.4,6.30980627]
[1749777089534,2.73213306,142.78,142.62,1.21919176]
[1749777089735,124.0,142.77,142.62,1.21919176]
[1749777089932,124.0,142.77,142.52,7.0105]
[1749777089933,20.15320469,142.66,142.52,7.0105]
[1749777090136,402.58,142.65,142.5,1.22032472]
[1749777090338,402.58,142.65,142.46,2.1678]
[1749777090645,402.58,142.65,142.56,0.05135763]
[1749777090646,0.05299137,142.59,142.56,0.05135763]
[1749777091051,402.58,142.65,142.46,3.38863845]
[1749777091347,402.58,142.65,142.56,2.54515198]
[1749777091645,402.58,142.65,142.59,0.04476028]
[1749777091833,0.05253431,142.62,142.59,0.04476028]
[1749777092636,20.15320469,142.6,142.56,2.5]
[1749777092837,20.15320469,142.59,142.56,2.4751]
[1749777093043,20.15320469,142.58,142.56,2.4751]
[1749777093238,402.58,142.65,142.56,2.4751]
[1749777093646,20.15320469,142.58,142.56,2.4751]
[1749777093952,20.15320469,142.58,142.56,2.52654599]
[1749777093953,0.05106366,142.58,142.56,2.52654599]
[1749777094555,20.15320469,142.57,142.56,2.52654599]
[1749777094850,0.05106366,142.58,142.56,2.52654599]
[1749777095441,20.15320469,142.57,142.56,2.52654599]
[1749777095748,402.58,142.65,142.56,2.52654599]
[1749777096051,402.58,142.65,142.56,2.4751]
[1749777096745,403.28,142.72,142.56,2.4751]
[1749777096944,403.28,142.72,142.59,0.04440867]
[1749777097139,403.28,142.72,142.57,2.3792]
[1749777097946,124.0,143.04,142.63,0.05359822]
[1749777098247,124.0,143.04,142.57,2.3792]
[1749777098248,20.15320469,142.74,142.59,20.15320469]
[1749777098541,20.15320469,142.74,142.57,2.3792]
[1749777098542,403.36,142.74,142.57,2.3792]
[1749777098940,2420.24,142.95,142.57,2.3792]
[1749777098941,403.36,142.87,142.57,2.3792]
[1749777099151,0.0492327,142.73,142.71,0.05382977]
[1749777099449,20.19831412,142.73,142.62,7.0057]
[1749777099642,403.36,142.75,142.6,20.15320469]
[1749777099847,20.15320469,142.71,142.57,22.53240469]
[1749777100048,20.15320469,142.7,142.57,2.3792]
[1749777100351,8.58,142.69,142.56,2.4751]
[1749777100547,20.20061438,142.64,142.61,0.05342134]
[1749777100949,0.04740969,142.64,142.61,0.05342134]
[1749777102151,20.15320469,142.63,142.61,0.05342134]
[1749777102453,20.15320469,142.62,142.56,2.4751]
[1749777102751,403.5,142.63,142.56,2.4751]
[1749777103351,403.5,142.71,142.58,0.05387022]
[1749777103551,403.5,142.71,142.56,2.4751]
[1749777103552,7.0019,142.7,142.56,2.4751]
[1749777104153,20.15320469,142.68,142.56,2.4751]
[1749777104343,411.66,142.71,142.56,2.4751]
[1749777104543,0.04868862,142.63,142.61,0.04866748]
[1749777104848,34.14040469,142.88,142.61,0.04700705]
[1749777105143,34.14040469,142.88,142.56,2.4751]
[1749777105144,20.15320469,142.78,142.56,2.4751]
[1749777105348,403.56,142.86,142.63,20.15320469]
[1749777105546,6.9971,142.79,142.64,4.4945]
[1749777105748,403.56,142.86,142.64,4.4945]
[1749777105953,0.05231156,142.76,142.74,0.04457593]
[1749777106157,6.9964,142.81,142.65,2.2553]
[1749777106347,0.05373833,142.76,142.57,66.5023]
[1749777106544,8.16,142.84,142.65,2.2475]
[1749777106753,8.16,142.84,142.66,20.15320469]
[1749777106948,20.15320469,142.77,142.66,33.3653]
[1749777107153,8.16,142.84,142.66,31.11]
[1749777107856,20.15320469,142.73,142.66,31.11]
[1749777108052,403.56,142.86,142.68,0.05314622]
[1749777108259,8.16,142.83,142.66,31.11]
[1749777108555,0.04858747,142.78,142.76,0.04847663]
[1749777108858,8.16,142.82,142.66,31.11]
[1749777109654,20.15320469,142.78,142.66,31.11]
[1749777109954,403.56,142.86,142.73,0.04860689]
[1749777109955,0.04641722,142.75,142.73,0.04860689]
[1749777110160,0.04615108,142.75,142.73,0.04479199]
[1749777110356,6.9956,142.82,142.73,7.04479199]
[1749777110552,403.56,142.86,142.72,2.3912]
[1749777110947,403.56,142.86,142.72,4.8912]
[1749777111455,0.05265553,142.8,142.72,4.8912]
[1749777111657,403.56,142.86,142.78,0.05055402]
[1749777111856,0.04725796,142.77,142.72,2.5]
[1749777112053,8.16,142.8,142.72,2.5]
[1749777112259,0.0466769,142.76,142.73,0.04757454]
[1749777112454,0.0466769,142.76,142.72,2.5]
[1749777112649,0.0466769,142.76,142.73,0.04702925]
[1749777113049,6.9994,142.74,142.73,0.04702925]
[1749777113460,0.0466769,142.76,142.73,0.04702925]
[1749777114051,403.56,142.86,142.73,7.04702925]
[1749777114252,20.15320469,142.85,142.72,2.5]
[1749777114558,20.15320469,142.82,142.72,2.5]
[1749777114760,403.56,142.86,142.72,2.5]
[1749777114964,423.71320469,142.86,142.73,20.15320469]
[1749777115164,403.56,142.86,142.78,0.05306817]
[1749777115366,13.9748,142.99,142.78,20.20627286]
[1749777115367,403.44,142.94,142.78,20.20627286]
[1749777115554,403.44,142.94,142.83,20.15320469]
[1749777115757,403.44,142.94,142.84,2.2417]
[1749777115962,20.15320469,142.99,142.86,20.15320469]
[1749777116164,403.44,143.01,142.86,20.15320469]
[1749777116363,0.04573764,142.94,142.91,0.05333137]
[1749777116563,403.44,143.01,142.86,20.15320469]
[1749777116564,20.15320469,142.99,142.86,20.15320469]
[1749777116860,20.15320469,143.04,142.91,0.05390135]
[1749777117063,403.32,143.09,142.91,2.1763]
[1749777117262,20.15320469,143.02,142.91,2.1763]
[1749777117458,13.9658,143.08,142.91,2.1763]
[1749777117857,6.9886,142.97,142.91,2.1763]
[1749777118058,0.04865963,143.01,142.98,0.04792754]
[1749777118360,403.32,143.09,142.91,2.1763]
[1749777118361,6.9829,143.08,142.99,27.14030469]
[1749777118560,20.9217,143.27,142.94,2.2209]
[1749777118561,20.15320469,143.13,142.94,2.2209]
[1749777118858,403.32,143.18,142.94,2.2209]
[1749777119057,20.15320469,143.16,142.94,405.5409]
[1749777119256,20.15320469,143.16,142.95,2.3492]
[1749777119463,6.9815,143.11,143.04,0.04694995]
[1749777119761,403.32,143.18,143.03,2.2366]
[1749777119762,20.15320469,143.16,143.03,2.2366]
[1749777119963,6.9831,143.08,143.03,2.2366]
[1749777120162,20.15320469,143.13,143.03,2.2366]
[1749777120461,0.05242434,143.09,143.07,0.04460327]
[1749777120659,0.04608894,143.09,143.07,0.05148047]
[1749777120865,0.04608894,143.09,142.95,2.3492]
[1749777120866,20.19929363,143.09,142.95,2.3492]
[1749777121063,20.15320469,143.04,142.95,2.3492]
[1749777121360,403.02,143.08,142.95,2.3492]
[1749777121864,403.02,143.08,142.95,4.8492]
[1749777122065,403.02,143.08,142.95,2.5]
[1749777122066,20.15320469,142.98,142.95,2.5]
[1749777122269,6.9887,142.96,142.95,2.5]
[1749777122567,20.15320469,143.07,142.95,9.5]
[1749777122863,403.02,143.08,142.95,2.5]
[1749777123176,0.0792,143.19,142.95,2.5]
[1749777123177,423.05320469,143.16,143.01,20.15320469]
[1749777123356,423.05320469,143.16,143.02,27.05300469]
[1749777123556,0.05190715,143.1,143.02,6.8998]
[1749777123761,0.05190715,143.1,143.08,0.05276297]
[1749777123957,0.05190715,143.1,143.02,6.8998]
[1749777124167,0.05190715,143.1,143.05,0.05017831]
[1749777124463,20.15320469,143.14,143.05,0.05017831]
[1749777124664,402.9,143.24,143.02,6.8998]
[1749777124665,20.15320469,143.2,143.02,6.8998]
[1749777124870,20.15320469,143.1,143.02,6.8998]
[1749777125056,20.15320469,143.13,143.02,6.8998]
[1749777125261,20.15320469,143.14,143.02,6.8998]
[1749777125559,0.04525752,143.09,143.07,0.05094049]
[1749777125968,0.04525752,143.09,142.95,2.5]
[1749777125969,6.9858,143.02,142.95,2.5]
[1749777126176,20.15320469,143.05,142.95,2.5]
[1749777126363,20.15320469,143.02,142.95,2.5]
[1749777126759,402.72,143.04,142.95,2.5]
[1749777126960,6.9887,142.96,142.95,2.28547014]
[1749777127172,124.0,142.96,142.73,589.0]
[1749777127375,20.15320469,142.92,142.76,20.15320469]
[1749777127669,20.15320469,142.87,142.74,4.4462]
[1749777127871,402.72,142.92,142.57,416.735]
[1749777128068,20.15320469,142.87,142.75,6.999]
[1749777128269,20.15320469,142.87,142.74,4.3714]
[1749777128467,402.72,142.92,142.74,4.3714]
[1749777128669,402.72,142.92,142.74,24.52460469]
[1749777128870,20.15320469,142.9,142.74,24.52460469]
[1749777129064,20.15320469,142.9,142.77,6.9979]
[1749777129364,0.04492414,142.83,142.81,0.04949715]
[1749777129567,0.04950704,142.83,142.81,0.05077606]
[1749777130473,0.04950704,142.83,142.81,2.55077606]
[1749777130770,402.72,142.92,142.81,9.55077606]
[1749777131078,422.87320469,142.92,142.81,2.5]
[1749777131365,20.15320469,142.89,142.81,2.5]
[1749777131572,20.15320469,142.86,142.81,2.5]
[1749777131769,6.9955,142.82,142.81,2.5]
[1749777131963,20.15320469,142.85,142.81,2.5]
[1749777132170,0.04981499,142.83,142.81,2.5]
[1749777132370,422.87320469,142.92,142.81,2.54794267]
[1749777132677,0.04839618,142.88,142.85,0.04876075]
[1749777132875,20.15320469,142.86,142.85,0.00059353]
[1749777133174,0.04839618,142.88,142.85,0.00059353]
[1749777133976,20.15320469,142.86,142.85,0.00059353]
[1749777134267,6.9936,142.86,142.85,0.00059353]
[1749777134475,0.04839618,142.88,142.85,0.00059353]
[1749777134861,20.20160087,142.88,142.85,0.00059353]
[1749777135066,20.15320469,142.86,142.81,2.5]
[1749777135265,6.9945,142.85,142.81,2.5]
[1749777135469,20.15320469,142.82,142.56,589.0]
[1749777135661,124.0,142.96,142.48,14.0239]
[1749777135662,402.92,142.81,142.59,20.15320469]
[1749777135865,20.15320469,142.79,142.65,20.15320469]
[1749777136065,402.92,142.78,142.59,2.3693]
[1749777136272,0.05265272,142.73,142.61,7.0058]
[1749777136469,402.92,142.73,142.67,0.05139679]
[1749777136665,20.19751889,142.68,142.67,0.05139679]
[1749777136872,402.92,142.73,142.58,2.2437]
[1749777137171,402.92,142.73,142.58,4.7437]
[1749777137172,0.04971442,142.69,142.58,4.7437]
[1749777137379,7.003,142.67,142.59,7.0068]
[1749777137575,124.0,142.68,142.58,4.7437]
[1749777137880,402.92,142.73,142.62,20.15320469]
[1749777138075,402.92,142.73,142.63,4.6752]
[1749777138278,20.15320469,142.8,142.64,20.15320469]
[1749777138474,20.15320469,142.8,142.66,20.15320469]
[1749777138771,403.12,142.82,142.63,4.6752]
[1749777138772,124.0,142.79,142.69,20.15320469]
[1749777138974,124.0,142.79,142.63,4.6752]
[1749777139379,0.04526064,142.72,142.7,0.04983848]
[1749777139574,0.05022864,142.72,142.7,0.05383086]
[1749777139878,403.12,142.71,142.59,7.0068]
[1749777140067,403.12,142.71,142.58,4.7437]
[1749777140068,20.15320469,142.67,142.58,4.7437]
[1749777140270,20.15320469,142.66,142.58,4.7437]
[1749777140472,20.15320469,142.63,142.58,2.5]
[1749777140870,403.12,142.71,142.58,2.5]
[1749777140871,20.15320469,142.6,142.58,2.5]
[1749777141078,20.15320469,142.6,142.58,2.33446513]
[1749777141267,20.15320469,142.6,142.42,20.15320469]
[1749777141469,20.15320469,142.59,142.41,6.832]
[1749777141672,20.15320469,142.59,142.43,20.15320469]
[1749777141875,20.15320469,142.56,142.41,6.832]
[1749777142072,7.0088,142.55,142.41,6.832]
[1749777142385,0.05239569,142.5,142.47,0.04461362]
[1749777142676,124.0,142.49,142.47,0.04589083]
[1749777143683,124.0,142.49,142.47,2.54589083]
[1749777143877,0.05051473,142.5,142.47,2.54589083]
[1749777144880,20.15320469,142.62,142.47,2.54589083]
[1749777145080,7.0069,142.59,142.47,2.5]
[1749777145272,124.0,142.58,142.47,2.5]
[1749777145474,403.48,142.64,142.47,2.5]
[1749777145876,0.05166291,142.57,142.47,2.5]
[1749777146075,0.05166291,142.57,142.48,2.4006]
[1749777146280,527.48,142.64,142.51,0.04874973]
[1749777146479,527.48,142.64,142.48,2.4006]
[1749777146677,403.48,142.64,142.48,2.4006]
[1749777146883,2434.9104,142.83,142.48,2.4006]
[1749777146884,423.73320469,142.69,142.54,20.15320469]
[1749777147078,403.58,142.68,142.55,2.3812]
[1749777147280,124.0,142.67,142.57,20.15320469]
[1749777147481,2420.92,142.83,142.6,20.2055764]
[1749777147684,20.15320469,142.77,142.63,20.15320469]
[1749777147885,124.0,142.76,142.61,2.4006]
[1749777148187,403.58,142.88,142.71,20.15320469]
[1749777148386,20.15320469,142.87,142.74,20.15320469]
[1749777148580,124.0,142.86,142.74,20.15320469]
[1749777148785,0.05319948,142.82,142.79,0.04453533]
[1749777149187,0.05319948,142.82,142.8,6.9964]
[1749777149389,0.05319948,142.82,142.79,0.04453533]
[1749777149583,9.948e-05,142.82,142.79,0.04453533]
[1749777150386,9.948e-05,142.82,142.81,6.996]
[1749777150788,9.948e-05,142.82,142.79,0.04453533]
[1749777150993,9.948e-05,142.82,142.81,6.996]
[1749777151183,9.948e-05,142.82,142.79,0.04453533]
[1749777151497,9.948e-05,142.82,142.81,6.996]
[1749777151981,9.948e-05,142.82,142.81,13.996]
[1749777152382,9.948e-05,142.82,142.81,34.14920469]
[1749777152885,124.0,142.95,142.81,34.14920469]
[1749777152886,124.0,142.95,142.81,7.0]
[1749777153084,124.0,142.95,142.84,20.15320469]
[1749777153688,144.15320469,142.95,142.8,20.15320469]
[1749777153992,0.05077079,142.89,142.86,0.05388468]
[1749777154189,0.05077079,142.89,142.86,0.04797753]
[1749777154381,20.15320469,142.87,142.86,0.04797753]
[1749777154586,6.9926,142.88,142.73,22.33970469]
[1749777154787,20.15320469,142.87,142.73,2.1865]
[1749777155086,20.15320469,142.84,142.73,4.6865]
[1749777155293,20.15320469,142.86,142.73,4.6865]
[1749777155496,0.05229714,142.81,142.78,0.05307521]
[1749777155689,0.05229714,142.81,142.78,0.05316904]
[1749777155690,0.052984,142.81,142.78,0.05316904]
[1749777157992,124.0,142.95,142.79,20.15320469]
[1749777158292,144.15320469,142.95,142.82,20.15320469]
[1749777158593,144.15320469,142.95,142.73,4.6865]
[1749777158782,20.15320469,142.92,142.77,20.15320469]
[1749777158980,0.04576432,142.86,142.83,0.04462743]
[1749777159181,0.04576432,142.86,142.83,0.04887066]
[1749777159900,124.0,142.95,142.83,7.04887066]
[1749777160194,124.0,142.95,142.82,20.15320469]
[1749777160387,124.0,142.95,142.84,6.9945]
[1749777160587,20.15320469,142.93,142.79,20.15320469]
[1749777160993,124.0,142.95,142.85,0.05362895]
[1749777161197,124.0,142.95,142.89,0.04425249]
[1749777161391,6.9906,142.93,142.89,0.04425249]
[1749777161586,124.0,142.95,142.89,0.04425249]
[1749777162489,423.39320469,142.99,142.89,0.04425249]
[1749777162798,423.39320469,142.99,142.93,0.04521282]
[1749777162990,124.0,142.98,142.93,0.04521282]
[1749777163587,144.15320469,142.98,142.93,0.04521282]
[1749777163792,124.0,142.98,142.93,0.04521282]